Cogmind - Beta 13 @@@ ROGUE MODE // 2024.03.14 @ 22:56:23 Player: opdo Result: Self-destructed Performance ------------- Evolutions (2) 1000 Regions Visited (4) 800 Robots Destroyed (23) 115 Value Destroyed (971) 971 Prototype IDs (3) 60 Alien Tech Used (0) 0 Bonus (235) 235 TOTAL SCORE: 3181 Bonus ------- Pacifist 200 High Alert Combat Kills 35 Cogmind --------- Core Integrity 110/550 Matter 300/300 Energy 160/160 System Corruption 8% Temperature Cool (0) Movement Core (200) Ox3 Location -8/Storage Parts ------- > --- POWER (2) -------- Light Nuclear Core > --- PROPULSION (3) --- (None) > --- UTILITY (3) ------ Small Storage Unit > --- WEAPON (3) ------- (None) > --- INVENTORY (8) ---- ECM Suite Hardlight Generator Datajack Peak State ------------ > --- POWER ------------ Ion Engine Heavy Ion Engine > --- PROPULSION ------- Surge Thruster Surge Thruster Surge Thruster > --- UTILITY ---------- Small Storage Unit Sensor Array Improved Sensor Array > --- WEAPON ----------- Heavy Particle Gun Heavy Particle Gun Heavy Hammer > --- INVENTORY -------- Ion Engine Aluminum Leg ECM Suite Hardlight Generator Datajack [Rating: 28] Favorites ----------- Power Ion Engine Engine Ion Engine Power Core Light Nuclear Core Propulsion Surge Thruster Leg Aluminum Leg Hover Unit Improved Hover Unit Flight Unit Surge Thruster Utility Small Storage Unit Device Sensor Array Storage Small Storage Unit Weapon Heavy Particle Gun Energy Gun Heavy Particle Gun Ballistic Gun Assault Rifle Impact Weapon Heavy Hammer Special Melee Weapon Datajack Build | -11 -10 -9 -8 -8 ------- Run | Yrd Mat Mat Mat Sto Slots Evolved 4 | . . 2 2 . Power 1 | . . . 1 . Propulsion 1 | . . 1 . . Utility 1 | . . 1 . . Weapon 1 | . . . 1 . Parts Attached 30 | 5 2 9 6 8 Power 6 | 1 . . 1 4 Engine 5 | 1 . . 1 3 Core 1 | . . . . 1 Reactor . | . . . . . Propulsion 10 | 2 . 6 . 2 Treads . | . . . . . Leg 4 | 2 . 1 . 1 Wheel . | . . . . . Hover 2 | . . 2 . . Flight 4 | . . 3 . 1 Utility 5 | 1 1 . 3 . Device 3 | . 1 . 2 . Storage 2 | 1 . . 1 . Processor . | . . . . . Hackware . | . . . . . Protection . | . . . . . Artifact . | . . . . . Weapon 9 | 1 1 3 2 2 Energy Gun 4 | . . 1 2 1 Energy Cannon . | . . . . . Ballistic Gun 2 | 1 . 1 . . Ballistic Cannon . | . . . . . Launcher . | . . . . . Special Weapon . | . . . . . Impact Weapon 2 | . . 1 . 1 Slashing Weapon . | . . . . . Piercing Weapon . | . . . . . Special Melee Weapon 1 | . 1 . . . Unidentified Prototypes 3 | . . 1 . 2 Corrupted Parts 1 | . . . . 1 System Corruption 8 | . . . . 8 Parts Lost 16 | . . 3 . 13 Power 3 | . . . . 3 Propulsion 7 | . . 2 . 5 Utility 2 | . . . . 2 Weapon 4 | . . 1 . 3 Highest Loss Streak 5 | . . 2 . 5 To Critical Strikes . | . . . . . Average Slot Usage (%) 81 | . 86 80 94 76 Engine 12 | . 14 11 15 12 Leg 8 | . 28 11 . 1 Hover 4 | . . 11 . . Flight 9 | . . 2 27 13 Device 13 | . 8 11 16 16 Storage 10 | . 14 11 9 9 Energy Gun 9 | . . 1 16 19 Ballistic Gun 5 | . 14 9 . . Impact Weapon 6 | . . 8 9 3 Special Melee Weapon 1 | . 7 2 . . Naked Turns . | . . . . . Heaviest Build 28 | 12 14 17 27 28 Greatest Support 20 | 20 20 20 9 10 Greatest Overweight (x) 9 | . . 5 2 9 Average Overweight (x) 1 | . . 1 1 3 Largest Inventory Capacity 8 | 8 8 8 8 8 Average Capacity 7 | 6 8 8 7 8 Most Carried 8 | 5 2 8 8 7 Average Carried 4 | 1 . 3 6 4 Final Capacity 8 | 8 8 8 8 8 Final Carried 8 | . 1 8 5 3 Class Distribution -------------------- 81% | Mutant 18% | Skirmisher Dominant Class ---------------- Mutant | -10/Materials Mutant | -9/Materials Mutant | -8/Materials Skirmisher | -8/Storage Resources | -11 -10 -9 -8 -8 ----------- Run | Yrd Mat Mat Mat Sto Matter Collected 492 | 250 . 62 . 180 Remotely . | . . . . . Salvage Created 1069 | . . 309 16 744 Parts 46 | . . 10 2 34 Haulers Intercepted . | . . . . . Recyclers Shooed . | . . . . . Parts Field Recycled . | . . . . . Retrieved Matter . | . . . . . Parts Self-Destructed . | . . . . . Prevented . | . . . . . Kills | -11 -10 -9 -8 -8 ------- Run | Yrd Mat Mat Mat Sto Combat Hostiles Destroyed 20 | . . 6 . 14 Melee 6 | . . 3 . 3 Guns 9 | . . 1 . 8 Classes Destroyed 5 | . . 3 1 1 Operator 1 | . . . 1 . Watcher 2 | . . 1 . 1 Grunt 10 | . . 3 . 7 Sentry 9 | . . 3 . 6 Hunter 1 | . . . . 1 Best Kill Streak 3 | . . 3 1 3 Combat Bots Only 3 | . . 3 . 3 Max Kills in Single Turn 1 | . . 1 1 1 Gunslinging . | . . . . . Exploded . | . . . . . Melee 1 | . . 1 . 1 Uniques/NPCs Destroyed . | . . . . . Combat | -11 -10 -9 -8 -8 -------- Run | Yrd Mat Mat Mat Sto Hostile Shots Fired 190 | . . 39 . 151 Missed 57 | . . 10 . 47 Damage Taken 1952 | . . 430 . 1522 Core 556 | . . 116 . 440 Absorbed by Shields . | . . . . . Core Remaining (%) 90 | 100 100 71 . . Volleys Fired 34 | . 3 6 1 24 Largest 3 | . 1 1 1 3 Hottest 155 | . 20 20 55 155 Shots Fired 66 | . 3 6 1 56 Gun 66 | . 3 6 1 56 Cannon . | . . . . . Launcher . | . . . . . Special . | . . . . . Kinetic 9 | . 3 6 . . Thermal 43 | . . . 1 42 Explosive . | . . . . . Electromagnetic 14 | . . . . 14 Robot Hit Streak 8 | . 1 4 5 8 Robot Miss Streak 3 | . 1 3 . 3 Penetration Max . | . . . . . Secondary Targets 1 | . . . . 1 Max Gunslinging Chain 1 | . . . . 1 Shots Hit Robots 83 | . 1 20 1 61 Core Hits 24 | . 1 4 1 18 Critical Kills . | . . . . . Critical Parts Destroyed 7 | . . 4 . 3 Critical Strikes 7 | . . 4 . 3 Smash 7 | . . 4 . 3 Melee Attacks 52 | . 1 25 . 26 Impact 50 | . . 24 . 26 Slashing . | . . . . . Piercing . | . . . . . Sneak Attacks 1 | . . 1 . . Combat Hostiles . | . . . . . Follow-up Attacks . | . . . . . Damage Inflicted 2041 | . 10 585 20 1426 Guns 777 | . 10 48 20 699 Cannons . | . . . . . Explosions . | . . . . . Melee 1264 | . . 537 . 727 Ramming . | . . . . . Kinetic 58 | . 10 48 . . Thermal 533 | . . . 20 513 Explosive . | . . . . . Electromagnetic 186 | . . . . 186 Impact 1264 | . . 537 . 727 Slashing . | . . . . . Piercing . | . . . . . Highest Corruption 8 | . . . . 8 Average Corruption 8 | . . . . 8 Corruption Purged . | . . . . . Corruption Blocked . | . . . . . Effects 2 | . . . . 2 Message Errors 1 | . . . . 1 Parts Rejected 1 | . . . . 1 Overload Shots . | . . . . . Overflow Damage 338 | . . 215 . 123 Projectiles . | . . . . . Explosions . | . . . . . Melee 338 | . . 215 . 123 Knockbacks 2 | . . 1 . 1 Impact 2 | . . 1 . 1 Kinetic . | . . . . . Secondary . | . . . . . Self-Inflicted Damage . | . . . . . Shots . | . . . . . Rammed . | . . . . . Targets Rammed . | . . . . . Kicked . | . . . . . Crushed . | . . . . . Highest Temperature 368 | . . 16 11 368 Average Temperature 119 | . . 10 9 124 Received Heat Transfer 777 | . . 165 . 612 Effects 3 | . . . . 3 Shutdowns 1 | . . . . 1 Interference 2 | . . . . 2 Siege Activations . | . . . . . Robots Corrupted 1 | . . . . 1 Combat Hostiles 1 | . . . . 1 Parts Fried 10 | . . 5 . 5 Impact Corruptions 16 | . . 9 . 7 Robots Melted . | . . . . . Combat Hostiles . | . . . . . Parts Melted 3 | . . . . 3 Heat Transferred 1036 | . . . 37 999 Parts Sabotaged . | . . . . . Parts Stolen . | . . . . . Parts Stripped . | . . . . . Power Chain Reactions . | . . . . . Alert | -11 -10 -9 -8 -8 ------- Run | Yrd Mat Mat Mat Sto Peak Influence 475 | . 15 167 32 475 Initial 13 | . . 5 12 13 Average 135 | . 4 66 30 287 Maximum Alert Level 2 | . . . . 2 Low Security (%) 73 | 100 100 100 100 27 Level 1 19 | . . . . 51 Level 2 7 | . . . . 20 Level 3 . | . . . . . Level 4 . | . . . . . Level 5 . | . . . . . High Security . | . . . . . Max Security . | . . . . . Squads Dispatched 3 | . 1 . . 2 Investigation . | . . . . . Extermination . | . . . . . Reinforcement 1 | . 1 . . . Assault . | . . . . . Garrison 2 | . . . . 2 Intercept . | . . . . . Searches Triggered . | . . . . . Construction Impeded . | . . . . . Haulers Reinforced . | . . . . . Active Scanning Responses . | . . . . . Cargo Convoy Interrupts . | . . . . . Stealth | -11 -10 -9 -8 -8 --------- Run | Yrd Mat Mat Mat Sto Distress Signals 5 | . 1 1 . 3 Communications Jammed . | . . . . . Distress Signals . | . . . . . Times Spotted 43 | . 1 9 1 32 Peak Tracking Total 7 | . 3 3 1 7 Tactical Retreats 8 | . . . . 8 Traps | -11 -10 -9 -8 -8 ------- Run | Yrd Mat Mat Mat Sto Traps Triggered . | . . . . . Indirectly . | . . . . . Trap Hack Attempts . | . . . . . Triggered . | . . . . . Disarmed . | . . . . . Reprogrammed . | . . . . . Reused . | . . . . . Traps Extracted . | . . . . . Installed . | . . . . . Triggered 1 | . . . . 1 Machines | -11 -10 -9 -8 -8 ---------- Run | Yrd Mat Mat Mat Sto Machines Disabled 1 | . . . . 1 Max in Single Turn 1 | . . . . 1 Machines Repaired . | . . . . . Machines Dismantled . | . . . . . Machines Sabotaged . | . . . . . Overloaded Fab Kills . | . . . . . Hacking | -11 -10 -9 -8 -8 --------- Run | Yrd Mat Mat Mat Sto Machines Accessed 4 | . 1 2 . 1 Terminals 2 | . . 2 . . Fabricators . | . . . . . Repair Stations . | . . . . . Recycling Units 2 | . 1 . . 1 Scanalyzers . | . . . . . Garrison Access . | . . . . . Total Hacks 5 | . 1 3 . 1 Successful 4 | . 1 2 . 1 Failed 1 | . . 1 . . Catastrophic . | . . . . . Database Lockouts . | . . . . . Manual . | . . . . . Terminals 3 | . . 3 . . Fabricators . | . . . . . Repair Stations . | . . . . . Recycling Units 2 | . 1 . . 1 Scanalyzers . | . . . . . Garrison Access . | . . . . . Terminal Hacks 2 | . . 2 . . Record 1 | . . 1 . . Unreport Threat 1 | . . 1 . . Fabricator Hacks . | . . . . . Repair Station Hacks . | . . . . . Recycling Unit Hacks 2 | . 1 . . 1 Retrieve Components 2 | . 1 . . 1 Scanalyzer . | . . . . . Garrison Access Hacks . | . . . . . Unauthorized Hacks . | . . . . . Terminals . | . . . . . Fabricators . | . . . . . Repair Stations . | . . . . . Recycling Units . | . . . . . Scanalyzers . | . . . . . Garrison Access . | . . . . . Data Cores Recovered 1 | . . . 1 . Used . | . . . . . Hacking Detections 2 | . 1 1 . . Full Trace Events . | . . . . . Feedback Events . | . . . . . Feedback Blocked . | . . . . . Robot Schematics Acquired . | . . . . . Robots Built . | . . . . . Authchips . | . . . . . Time . | . . . . . Total Robot Build Rating . | . . . . . Part Schematics Acquired . | . . . . . Parts Built . | . . . . . Authchips . | . . . . . Time . | . . . . . Total Part Build Rating . | . . . . . Parts Repaired . | . . . . . Time . | . . . . . Parts Recycled . | . . . . . Recycled Matter . | . . . . . Retrieved Matter . | . . . . . Retrieved Components 13 | . 3 . . 10 Parts Scanalyzed . | . . . . . Part Schematics Acquired . | . . . . . Parts Damaged . | . . . . . Bothacking | -11 -10 -9 -8 -8 ------------ Run | Yrd Mat Mat Mat Sto Used RIF Installer . | . . . . . Robots Hacked 1 | . . 1 . . Non-combat 1 | . . 1 . . Combat . | . . . . . Robot Hacks Applied 1 | . . 1 . . no_distress 1 | . . 1 . . Relay Couplers Released . | . . . . . Fabnet Peak Effective % . | . . . . . Robots Rewired . | . . . . . Allies Hacked . | . . . . . Hacks Repelled . | . . . . . Allies | -11 -10 -9 -8 -8 -------- Run | Yrd Mat Mat Mat Sto Total Allies . | . . . . . Largest Group . | . . . . . Highest-Rated Group . | . . . . . Highest-Rated Ally . | . . . . . Total Orders . | . . . . . Ally Attacks . | . . . . . Total Damage . | . . . . . Kills . | . . . . . Allies Corrupted . | . . . . . Allies Melted . | . . . . . Intel | -11 -10 -9 -8 -8 ------- Run | Yrd Mat Mat Mat Sto Robot Analysis Total . | . . . . . Derelict Logs Recovered . | . . . . . Drone Launches . | . . . . . Drone Recoveries . | . . . . . Exploration | -11 -10 -9 -8 -8 ------------- Run | Yrd Mat Mat Mat Sto Turns Passed 1180 | 46 113 474 113 434 Spaces Moved 634 | 42 84 259 98 151 Core 35 | 19 . 3 . 13 Treads . | . . . . . Legs 165 | 23 84 34 . 24 Wheels . | . . . . . Hover 180 | . . 180 . . Flight 254 | . . 42 98 114 Fastest Speed 50 | 50 120 69 69 109 Average Speed 138 | 88 120 143 99 181 Slowest Speed 395 | 120 120 300 109 395 Overloaded Moves . | . . . . . Propulsion Burnouts . | . . . . . Robots Hopped . | . . . . . Cave-ins Triggered . | . . . . . Exploration Rate (%) 17 | 3 19 30 8 29 Regions Visited 4 Branch Regions 1 Pre-discovered Areas . | . . . . . Known Exits Taken . | . . . . . Unknown Exits Taken 4 | 1 1 1 1 . Scrap Searched . | . . . . . Spaces Dug 4 | . . 4 . . Terrain Destroyed 4 | . . 4 . . Melee 4 | . . 4 . . Projectile . | . . . . . AOE . | . . . . . Terrain Rammed . | . . . . . Walls Destroyed . | . . . . . Machines Disabled . | . . . . . Actions | -11 -10 -9 -8 -8 --------- Run | Yrd Mat Mat Mat Sto Total 784 | 51 92 311 112 218 Wait 2 | . . . . 2 Move 630 | 41 83 258 97 151 Hop . | . . . . . Pick Up 30 | 5 3 12 5 5 Fast Attach . | . . . . . Attach 20 | 5 2 4 4 5 Detach . | . . . . . Swap 10 | . . 5 2 3 Drop 6 | . . 1 3 2 Fire 34 | . 3 6 1 24 Melee 52 | . 1 25 . 26 Ram . | . . . . . Kick . | . . . . . Crush . | . . . . . Escape Stasis . | . . . . . Rewire . | . . . . . Trap . | . . . . . Miscellaneous . | . . . . . Route ------- -11/Scrapyard -10/Materials -9/Materials -8/Materials -8/Storage History --------- Turn | Location | Event 14 | -11/Scrapyard | Discovered new exit (range 15) 47 | -11/Scrapyard | Entered Materials 129 | -10/Materials | Discovered new exit (range 16) 160 | -10/Materials | Entered another Materials area 160 | -9/Materials | Evolved 2 slots: Propulsion x1, Utility x1 312 | -9/Materials | Build established: Mutant 624 | -9/Materials | Discovered new exit (range 13) 634 | -9/Materials | Entered another Materials area 634 | -8/Materials | Evolved 2 slots: Power x1, Weapon x1 677 | -8/Materials | Discovered new exit (range 9) 747 | -8/Materials | Entered Storage 969 | -8/Storage | Lost 3 parts (1p2n) 1051 | -8/Storage | Garrison activated, responded to threat 1103 | -8/Storage | Core integrity fell below 50% 1123 | -8/Storage | Lost 5 parts (2p1n2w) 1181 | -8/Storage | Self-destructed Last Messages --------------- R-06 Scavenger collects Corrupted Imp. Ion Engine. R-06 Scavenger inserts Aluminum Leg into recycling unit. Recycling unit begins recycling process. R-06 Scavenger inserts Aluminum Leg into recycling unit. K-01 Serf collects debris. R-06 Scavenger inserts Corrupted Imp. Ion Engine into recycling unit. Recycling unit begins recycling process. K-01 Serf collects debris. Recycling unit begins matter transfer process. R-06 Scavenger inserts Particle Gun into recycling unit. K-01 Serf collects debris. System corrupted: Hvy. Hammer rejected. R-06 Scavenger inserts Corrupted Lgt. Treads into recycling unit. Recycling unit begins recycling process. Map ----- +----------------------------------------------------+ | ?????????????????????????????????????????????????? | | ?????????????????????????????????????????????????? | | ?????????????????????????????????????????????????? | | ?????????????????????????????????????????????????? | | ?????????????????????????????????????????????????? | | ?????????????????????????????????????????????????? | | ?????????????????????????????????????????????????? | | ?????????????????????????????????????????????????? | | ?????????????????????????????????#???????????????? | | ?????????????????????????????????# ?????????????? | | ??????????????????????? ????????? ????????????? | | ??????????????????????# ??????????? ??????????? | | ??????????????????????# k ??????????###+######???? | | ??????????????????????# ??????????# %%" #???? | | ??????????????????????# ??????????# #???? | | ??????????????????????# ku??????????# "" #???? | | ??????????????????????# ??######### "!]" #???? | | ???* ????????????????# ### # # "[]"" #???? | | ?? ????????????????# ## # """%= #???? | | ?? ????????????????#kss## #! ""!! #???? | | ??# ?????????????##?# ## %+ """"%#???? | | ??# ????????????? #w ## #= #???? | | ??# ?????????????? #s ## = #/#####+##???? | | ??# ??????????????? + ## *% #%#???# #????? | | ??# ########????????# ## =%=! # #???# #????? | | ??# # #????????# @## [%= # #???# ##???? | | ??# # #????????# /######/#### ### #???? | | ??# # #????????# %%% #???? | | ??# # #????????# #???? | | ??# # #????????# ######## #???? | | ??# # #????????# #???????# ##???? | | ??# + #????????# [=% % #???????# #????? | | ??# # ##########*= r ##+#???????# #????? | | ??# # + %% [!r[ #? ????????# ?????? | | ??# # ####% ###"Y"## #? ????????# ?????? | | ??# # #??# #?#"""## #? ???????? ?????? | | ??# # #??# #?###### #?????????? ?????? | | ??# # #??# #??????# #?????????? ?????? | | ??# ########### #??????# #?????????? ?????? | | ??# #??# !+ #??????# #??????????????????? | | ??#####??# % #+##+#####??# #??????????????????? | | ?????????# ! # [[%#??? ???????????????????? | | ?????????# ! ?# """ =##??? ???????????????????? | | ?????????# ?# """ #????#???????????????????? | | ?????????# ??# """ #????????????????????????? | | ?????????#####??# #????????????????????????? | | ????????????????#########????????????????????????? | | | | | | | +----------------------------------------------------+ Best States ------------- Heat Dissipation 31 Energy Generation 17 Energy Capacity 415 Matter Stores 300 Matter Capacity 300 Sight Range 16 Robot Scan Range 15 Terrain Scan Density 10 ECM Strength 1 Evasion (%) 55 Item Schematics ----------------- None Robot Schematics ------------------ None Fabricated ------------ Nothing Alien Tech Used ----------------- None Achievements -------------- None Challenges ------------ None Game ------ Seed SpacefoldStealthScanner Manual? 0 Play Time 00:12:23 Cumulative 5.8 hours Start 2024.03.14 @ 22:36:08 End 2024.03.14 @ 22:56:23 Sessions 3 Manual Loads 0 Difficulty Rogue Special Mode None Game No. 12 Rogue 10 Adventurer 2 Explorer 0 Win Type - Total 0 Types 0/0/0/0/0/0/0/0/0 Lore% 10 Gallery% 18 Achievement% 11 Wizard Run 0 Options --------- Layout 1 ASCII 0 Keyboard 0 Movement Arrows Keybinds 0 Fullscreen 1 Font 24/Smallcaps Map View 50x35 Zoom Use 0% Tactical HUD 0 Map Filters NONE Filters NONE Steam 1 RUN: 5aa63a31-1150-4ecc-85fd-2b45bfe02ca6